fUST/lending_fUST_20251226
["ID","MTS","AMOUNT","RATE_DAILY","PERIOD"]
[399851608,1766744994534,505.1,8.302e-05,2]
[399851609,1766744994936,577.26,8.61e-05,2]
[399851610,1766744995556,649.42,8.917e-05,2]
[399851611,1766744995954,721.57,9.225e-05,2]
[399851613,1766745006562,500.0,0.00013273,2]
[399851616,1766745010387,500.0,0.00013273,2]
[399851617,1766745012022,5000.0,0.00017003,2]
[399851618,1766745013433,500.0,0.00013273,2]
[399851619,1766745016888,498.80340417,0.00013273,2]
[399851646,1766745031858,-673.0,0.00017233,2]
[399851648,1766745031868,-242.00231167,0.00017262,2]
[399851650,1766745031880,-300.0,0.00017285,2]
[399851651,1766745031890,-252.0,0.00017285,2]
[399851653,1766745031901,-200.77392763,0.00017285,2]
[399851655,1766745031915,-99.22607237,0.00017285,2]
[399851657,1766745031926,-1200.0,0.00017285,2]
[399851659,1766745031937,-174.10388661,0.00017286,2]
[399851661,1766745031947,-174.10388661,0.00017287,2]
[399851663,1766745031957,-174.10388661,0.00017287,2]
[399851665,1766745031968,-174.10388661,0.00017288,2]
[399851667,1766745031978,-165.76046166,0.00017288,2]
[399851669,1766745031988,-478.75725327,0.00017378,2]
[399851671,1766745031998,-1000.0,0.00017378,2]
[399851673,1766745032008,-1000.0,0.00017378,2]
[399851675,1766745032019,-1000.0,0.00017378,2]
[399851677,1766745032030,-817.227902,0.00017378,2]
[399851679,1766745032043,-182.772098,0.00017378,2]
[399851681,1766745032053,-139.351902,0.00017378,2]
[399851684,1766745032076,-860.648098,0.00017378,2]
[399851686,1766745032086,-1000.0,0.00017378,2]
[399851688,1766745032097,-1000.0,0.00017378,2]
[399851689,1766745032107,-1000.0,0.00017378,2]
[399851691,1766745032119,-1000.0,0.00017378,2]
[399851693,1766745032129,-1000.0,0.00017378,2]
[399851695,1766745032140,-1000.0,0.00017378,2]
[399851696,1766745032150,-1000.0,0.00017378,2]
[399851697,1766745032161,-1000.0,0.00017378,2]
[399851698,1766745032172,-1000.0,0.00017378,2]
[399851699,1766745032183,-1000.0,0.00017378,2]
[399851700,1766745032195,-193.31,0.00017378,3]
[399851701,1766745032206,-1200.0,0.00017383,2]
[399851702,1766745032219,-10984.07406547,0.00017384,2]
[399851703,1766745032229,-500.0,0.00017385,2]
[399851704,1766745032240,-639.56250701,0.00017385,2]
[399851705,1766745032252,-598.07376584,0.00017385,2]
[399851706,1766745032263,-500.0,0.00017385,2]
[399851707,1766745032274,-500.0,0.00017385,2]
[399851708,1766745032285,-293.73759456,0.00017385,2]
[399851709,1766745032295,-500.0,0.00017385,2]
[399851710,1766745032306,-651.1338354,0.00017385,2]
[399851711,1766745032317,-513.86301713,0.00017385,2]
[399851712,1766745032328,-10000.0,0.00017385,2]
[399851713,1766745032338,-631.56850294,0.00017386,2]
[399851714,1766745032349,-500.0,0.00017387,2]
[399851715,1766745032359,-2400.0,0.00017387,2]
[399851716,1766745032370,-152.304879,0.00017387,2]
[399851717,1766745032380,-199.902287,0.00017387,2]
[399851718,1766745032390,-199.902287,0.00017387,2]
[399851719,1766745032400,-199.902287,0.00017387,2]
[399851720,1766745032410,-199.902287,0.00017387,2]
[399851721,1766745032421,-151.0,0.00017387,2]
[399851722,1766745032431,-151.0,0.00017387,2]
[399851723,1766745032441,-166.866887,0.00017387,2]
[399851724,1766745032451,-557113.24769965,0.00017388,2]
[399851728,1766745037954,-5000.0,0.00017204,2]
[399851729,1766745037965,-745.74079194,0.00017378,2]
[399851730,1766745037978,-254.25920806,0.00017378,2]
[399851731,1766745037988,-1000.0,0.00017378,2]
[399851732,1766745037998,-1000.0,0.00017378,2]
[399851733,1766745038008,-1000.0,0.00017378,2]
[399851734,1766745038017,-1011.88114346,0.00017378,2]
[399851735,1766745038027,-510.86166366,0.00017386,2]
[399851736,1766745038038,-510.86166366,0.00017386,2]
[399851737,1766745038048,-500.0,0.00017386,2]
[399851738,1766745038058,-510.86166366,0.00017386,2]
[399851739,1766745038068,-356.07538602,0.00017386,2]
[399851740,1766745038078,-510.86166366,0.00017386,2]
[399851741,1766745038088,-510.86166366,0.00017386,2]
[399851742,1766745038098,-510.86166366,0.00017386,2]
[399851743,1766745038109,-510.86166366,0.00017386,2]
[399851744,1766745038119,-510.86166366,0.00017386,2]
[399851745,1766745038130,-510.86166366,0.00017386,2]
[399851746,1766745038140,-510.86166366,0.00017386,2]
[399851747,1766745038150,-500.0,0.00017386,2]
[399851748,1766745038160,-510.86166366,0.00017386,2]
[399851749,1766745038170,-510.86166366,0.00017386,2]
[399851750,1766745038180,-510.86166366,0.00017386,2]
[399851751,1766745038190,-510.86166366,0.00017386,2]
[399851752,1766745038200,-510.86166366,0.00017386,2]
[399851753,1766745038210,-510.86166366,0.00017386,2]
[399851754,1766745038232,-46234.35775427,0.00017388,2]
[399851755,1766745038251,-2274.94824203,0.00017388,2]
[399851756,1766745038265,-2741.79265226,0.00017388,2]
[399851757,1766745038282,-966.75000292,0.00017388,2]
[399851758,1766745038296,-482.24165179,0.00017388,2]
[399851759,1766745038310,-415.64417249,0.00017388,2]
[399851760,1766745038324,-1748.29487563,0.00017388,2]
[399851761,1766745038337,-2555.7276687,0.00017388,2]
[399851762,1766745038350,-2790.2516653,0.00017388,2]
[399851809,1766745040198,-508.80828309,0.00017386,2]
[399851811,1766745040209,-218.90648349,0.00017388,2]
[399851813,1766745040223,-717.828,0.00017388,2]
[399851815,1766745040235,-500.0,0.00017388,2]
[399851952,1766745045062,-542.41,0.00017388,2]
[399851959,1766745045118,-63830.80506174,0.00017388,2]
[399851961,1766745045132,-7508.04858177,0.00017388,2]
[399852057,1766745046093,-452.60481759,0.00017388,2]
[399852059,1766745046106,-2206.19098277,0.00017388,2]
[399852064,1766745046147,-2433.16650037,0.00017388,2]
[399852071,1766745046203,-1438.72,0.00017388,2]
[399852073,1766745046216,-40947.59067704,0.00017388,2]
[399852079,1766745046259,-20627.32266041,0.00017388,2]
[399852891,1766745064216,500.0,0.00013273,2]
[399852892,1766745064269,500.0,0.00013273,2]
[399852893,1766745067316,500.0,0.00013273,2]
[399852894,1766745067379,500.0,0.00013273,2]
[399852895,1766745068486,150.0,5.132e-05,2]
[399852896,1766745068880,150.0,5.376e-05,2]
[399852897,1766745069262,150.0,5.62e-05,2]
[399852898,1766745069663,178.54,5.865e-05,2]
[399852899,1766745070055,223.17,6.109e-05,2]
[399852900,1766745070443,267.81,6.354e-05,2]
[399852901,1766745070837,312.44,6.598e-05,2]
[399852902,1766745071256,357.08,6.842e-05,2]
[399852903,1766745071647,401.71,7.087e-05,2]
[399852904,1766745072096,446.35,7.331e-05,2]
[399852905,1766745074098,500.0,0.00013273,2]
[399852906,1766745077589,519.44710243,0.00013273,2]
[399852907,1766745082947,500.0,0.00013273,2]
[399852908,1766745084057,500.0,0.00013273,2]
[399852909,1766745084083,500.0,0.00013273,2]
[399852910,1766745084113,500.0,0.00013273,2]
[399852911,1766745084372,500.0,0.00013821,2]
[399852912,1766745084440,500.0,0.00013273,2]
[399852913,1766745084469,500.0,0.00013273,2]
[399852914,1766745084497,500.0,0.00013821,2]
[399852915,1766745084525,343.46289757,0.00013273,2]
[399852916,1766745084552,156.53710243,0.00013273,2]
[399852917,1766745084579,500.0,0.00013821,2]
[399852918,1766745088967,154.88,0.0001,2]
[399852919,1766745091597,154.88,0.000102,2]
[399852920,1766745093978,154.88,0.000104,2]
[399852921,1766745123320,500.0,0.00013273,2]
[399852922,1766745123369,500.0,0.00013821,2]
[399852923,1766745127264,291.90965444,0.00013273,2]
[399852924,1766745129413,459.09456368,0.00013273,2]
[399852925,1766745129738,500.0,0.00013273,2]
[399852926,1766745130159,500.0,0.00013273,2]
[399852927,1766745132911,500.0,0.00013273,2]
[399852928,1766745139900,500.0,0.00013273,2]
[399852929,1766745140323,150.0,5.141e-05,2]
[399852930,1766745140740,150.0,5.386e-05,2]
[399852931,1766745141240,150.0,5.631e-05,2]
[399852932,1766745141628,150.0,5.875e-05,2]
[399852933,1766745142034,150.0,6.12e-05,2]
[399852934,1766745142428,150.0,6.365e-05,2]
[399852935,1766745142833,158.74,6.61e-05,2]
[399852936,1766745143227,181.41,6.855e-05,2]
[399852937,1766745143665,204.09,7.099e-05,2]
[399852938,1766745144044,226.77,7.344e-05,2]
[399852939,1766745185418,500.0,0.00013273,2]
[399852940,1766745185447,500.0,0.00013273,2]
[399852941,1766745185474,500.0,0.00013821,2]
[399852942,1766745185501,500.0,0.00013273,2]
[399852943,1766745185533,500.0,0.00013273,2]
[399852944,1766745185561,500.0,0.00013273,2]
[399852945,1766745185593,456.81867945,0.00013821,2]
[399852946,1766745185616,43.18132055,0.00013821,2]
[399852947,1766745185703,500.0,0.00013821,2]
[399852948,1766745188652,500.0,0.00013273,2]
[399852949,1766745193545,500.0,0.00013273,2]
[399852950,1766745193600,500.0,0.00013821,2]
[399852951,1766745195979,500.0,0.00013273,2]
[399852952,1766745202262,500.0,0.00013273,2]
[399852953,1766745202361,500.0,0.00013273,2]
[399852954,1766745207950,150.0,5.177e-05,2]
[399852955,1766745208354,150.0,5.424e-05,2]
[399852956,1766745208785,150.0,5.67e-05,2]
[399852957,1766745209213,150.0,5.917e-05,2]
[399852958,1766745209662,150.0,6.163e-05,2]
[399852959,1766745243960,550.84116012,0.00013273,2]
[399852960,1766745244961,500.0,0.00013273,2]
[399852961,1766745244989,500.0,0.00013273,2]
[399852962,1766745245018,500.0,0.00013821,2]
[399852963,1766745245239,500.0,0.00013273,2]
[399852964,1766745247647,300.0,0.00013673,2]
[399852965,1766745250283,500.0,0.00013273,2]
[399852966,1766745250990,500.0,0.00013273,2]
[399852967,1766745255832,594.1196124,0.00016803,2]
[399852968,1766745259770,5000.0,0.00017008,2]
[399852969,1766745275912,150.0,5.156e-05,2]
[399852970,1766745276194,150.0,5.402e-05,2]
[399852971,1766745282747,4700.01,0.00017008,2]
[399852972,1766745282773,299.99,0.00017008,2]
[399852973,1766745304011,604.56995174,0.00013273,2]
[399852974,1766745304264,500.0,0.00013699,2]
[399852975,1766745304868,500.0,0.00013273,2]
[399852976,1766745304897,500.0,0.00013821,2]
[399852977,1766745306887,5000.0,0.00017008,2]
[399852978,1766745313118,500.0,0.00013273,2]
[399852979,1766745315026,500.0,0.00013273,2]
[399852980,1766745320011,500.0,0.00013273,2]
[399852981,1766745320239,501.95645661,0.00013273,2]
[399852982,1766745320481,593.49359165,0.00013273,2]
[399852983,1766745320503,4.4239166,0.00013273,2]
[399852984,1766745320550,500.0,0.00013273,2]
[399852985,1766745320638,500.0,0.00013273,2]
[399852986,1766745320666,500.0,0.00013273,2]
[399852987,1766745320702,500.0,0.00013273,2]
[399852988,1766745320730,500.0,0.00013273,2]
[399852989,1766745321962,500.0,0.00013273,2]
[399852990,1766745329723,5000.0,0.00017008,2]
[399852991,1766745340473,150.0,5.155e-05,2]
[399852992,1766745341379,150.0,5.4e-05,2]
[399852993,1766745341788,150.0,5.646e-05,2]
[399852994,1766745342311,150.0,5.891e-05,2]
[399852995,1766745342744,150.0,6.137e-05,2]
[399852996,1766745343183,150.0,6.382e-05,2]
[399852997,1766745353077,1095.5860834,0.00017008,2]
[399852998,1766745353102,3904.4139166,0.00017008,2]
[399852999,1766745363436,168.67203081,0.00013273,2]
[399853000,1766745377198,5000.0,0.00017008,2]
[399853001,1766745400346,926.92405259,0.00017008,2]
[399853002,1766745400374,4073.07594741,0.00017008,2]
[399853003,1766745423392,1000.0,0.00013821,2]
[399853004,1766745423434,500.0,0.00013273,2]
[399853005,1766745423463,500.0,0.00013273,2]
[399853006,1766745423496,1000.0,0.00013821,2]
[399853007,1766745424078,2926.93405259,0.00017008,2]
[399853008,1766745424103,2073.06594741,0.00017008,2]
[399853009,1766745446889,500.0,0.00030137,120]
[399853010,1766745448792,5000.0,0.00017008,2]
[399853011,1766745456226,500.0,0.00030137,120]
[399853012,1766745464213,500.0,0.00030137,120]
[399853013,1766745472212,2780.28781727,0.00017008,2]
[399853014,1766745473328,500.0,0.00030137,120]
[399853015,1766745482965,500.0,0.00030137,120]
[399853016,1766745483006,146.65623532,0.00011721,2]
[399853017,1766745483027,5.52376468,0.00011721,2]
[399853018,1766745483115,500.0,0.00013273,2]
[399853019,1766745483156,519.37448667,0.00013821,2]
[399853020,1766745483276,152.18,0.00011721,2]
[399853021,1766745483550,152.17,0.00011721,2]
[399853022,1766745496160,1000.0,0.00030137,120]
[399853023,1766745543288,396.23489097,0.00013273,2]
[399853024,1766745543318,500.0,0.00013273,2]
[399853025,1766745543346,500.0,0.00013273,2]
[399853026,1766745543373,1000.0,0.00013821,2]
[399853027,1766745543400,1000.0,0.00013821,2]
[399853028,1766745543427,193.59386885,0.00014368,2]
[399853029,1766745543455,500.0,0.00013273,2]
[399853030,1766745543638,676.05276669,0.00013821,2]
[399853031,1766745547158,500.0,0.00013273,2]
[399853032,1766745666941,500.0,0.00013273,2]
[399853033,1766745667100,500.0,0.00013273,2]
[399853034,1766745667128,500.0,0.00013273,2]
[399853036,1766745703314,180.432,0.00016932,2]
[399853037,1766745727292,500.0,0.00013273,2]
[399853038,1766745727370,500.0,0.00013273,2]
[399853039,1766745727397,500.0,0.00013821,2]
[399853040,1766745727426,224.44822214,0.00013821,2]
[399853041,1766745727448,275.55177786,0.00013821,2]
[399853042,1766745728648,500.0,0.00013273,2]
[399853043,1766745728677,500.0,0.00013273,2]
[399853044,1766745728732,500.0,0.00013821,2]
[399853045,1766745783965,500.0,0.00013273,2]
[399853049,1766745889906,199999.99999999,0.0003,120]
[399853050,1766745904574,379.79953395,0.00013273,2]
[399853051,1766745906030,500.0,0.00013273,2]
[399853052,1766745906342,550.60352669,0.00013273,2]
[399853053,1766745907111,500.0,0.00013273,2]
[399853054,1766745907138,500.0,0.00013273,2]
[399853055,1766745907537,500.0,0.00013273,2]
[399853056,1766745966213,500.0,0.00013699,2]
[399853057,1766745966515,206.57119576,0.00016686,2]
[399853058,1766745966799,500.0,0.00013273,2]
[399853060,1766746023889,500.0,0.00013273,2]
[399853061,1766746023948,500.0,0.00013821,2]
[399853062,1766746086871,206.57119575,0.0001668,2]
[399853064,1766746146416,500.0,0.00013273,2]
[399853065,1766746146505,500.0,0.00013273,2]
[399853066,1766746146552,500.0,0.00013273,2]
[399853067,1766746146612,500.0,0.00013273,2]
[399853068,1766746146776,380.91276999,0.00013273,2]
[399853069,1766746146798,119.08723001,0.00013273,2]
[399853071,1766746203859,500.0,0.00013273,2]
[399853072,1766746203911,500.0,0.00013821,2]
[399853095,1766746238174,-978.6453352,0.00017176,2]
[399853096,1766746238188,-398.40358852,0.00017176,2]
[399853097,1766746238205,-559.59362836,0.00017176,2]
[399853098,1766746238224,-3924.79209959,0.00017176,2]
[399853099,1766746238234,-273.48050794,0.00017176,2]
[399853100,1766746238245,-273.48050794,0.00017182,2]
[399853101,1766746238259,-1109.0,0.00017184,2]
[399853102,1766746238271,-255.7926006,0.00017185,2]
[399853103,1766746238282,-165.76046166,0.00017185,2]
[399853104,1766746238301,-273.48050794,0.00017188,2]
[399853105,1766746238312,-273.48050794,0.00017194,2]
[399853107,1766746238323,-273.48050794,0.000172,2]
[399853109,1766746238335,-300.0,0.00017234,2]
[399853110,1766746238346,-168.3888056,0.00017267,2]
[399853111,1766746238357,-250.0,0.00017267,2]
[399853112,1766746238369,-461.67526834,0.00017267,2]
[399853113,1766746238381,-500.0,0.00017267,2]
[399853114,1766746238392,-78.21866423,0.00017267,2]
[399853115,1766746238406,-421.78133577,0.00017267,2]
[399853116,1766746238417,-647.6092258,0.00017267,2]
[399853152,1766746240448,-2050.02747866,0.00017084,2]
[399853154,1766746240462,-1582.7060802,0.00017267,2]
[399853156,1766746240473,-151.0,0.00017267,2]
[399853158,1766746240483,-250.0,0.00017267,2]
[399853160,1766746240495,-151.0,0.00017267,2]
[399853162,1766746240506,-251.236961,0.00017267,2]
[399853164,1766746240520,-500.0,0.00017267,2]
[399853166,1766746240530,-1397.23108025,0.00017267,2]
[399853168,1766746240542,-151.0,0.00017267,2]
[399853170,1766746240552,-261.54278577,0.00017267,2]
[399853172,1766746240563,-151.0,0.00017267,2]
[399853174,1766746240572,-1200.0,0.00017274,2]
[399853176,1766746240582,-500.0,0.00017276,2]
[399853178,1766746240593,-500.0,0.00017276,2]
[399853180,1766746240602,-500.0,0.00017276,2]
[399853182,1766746240612,-500.0,0.00017276,2]
[399853184,1766746240622,-500.0,0.00017276,2]
[399853186,1766746240631,-500.0,0.00017276,2]
[399853188,1766746240641,-466.93018337,0.00017276,2]
[399853436,1766746244578,-87.05397535,0.00017276,2]
[399853437,1766746244589,-500.0,0.00017276,2]
[399853438,1766746244600,-412.94602465,0.00017276,2]
[399853439,1766746244612,-87.05397535,0.00017276,2]
[399853440,1766746244622,-333.3753483,0.00017276,2]
[399853441,1766746244632,-500.0,0.00017276,2]
[399853442,1766746244642,-500.0,0.00017276,2]
[399853443,1766746244655,-500.0,0.00017276,2]
[399853444,1766746244665,-380.39689635,0.00017276,2]
[399853445,1766746244679,-119.60310365,0.00017276,2]
[399853446,1766746244689,-171.26864189,0.00017276,2]
[399853447,1766746246265,-383.46938446,0.00017276,2]
[399853448,1766746246275,-235.34798124,0.00017276,2]
[399853450,1766746246286,-500.0,0.00017276,2]
[399853452,1766746246296,-500.0,0.00017276,2]
[399853454,1766746246306,-500.0,0.00017277,2]
[399853456,1766746246316,-442.09795206,0.00017277,2]
[399853458,1766746246326,-286.59624037,0.00017277,2]
[399853459,1766746246338,-1040.74068017,0.00017277,2]
[399853460,1766746246349,-449.25277022,0.00017277,2]
[399853461,1766746246359,-12.95654961,0.00017277,2]
[399853463,1766746254015,197.0281149,0.0001409,2]
[399853467,1766746303313,180.43211789,0.00016932,2]
[399853468,1766746305250,150.0,5.213e-05,2]
[399853469,1766746305634,150.0,5.461e-05,2]
[399853470,1766746306054,150.0,5.709e-05,2]
[399853471,1766746306442,150.0,5.957e-05,2]
[399853472,1766746306856,150.0,6.205e-05,2]
[399853473,1766746307778,150.63,6.454e-05,2]
[399853474,1766746308219,175.73,6.702e-05,2]
[399853475,1766746308611,200.84,6.95e-05,2]
[399853476,1766746309031,225.94,7.198e-05,2]
[399853477,1766746309428,251.05,7.446e-05,2]
[399853478,1766746324329,1292.3237998,0.00016498,2]
[399853479,1766746374530,150.0,5.219e-05,2]
[399853480,1766746588432,1074.547429,0.00030136,120]
[399853487,1766746808772,500.0,0.00017002,2]
[399853488,1766746808954,500.0,0.00017002,2]
[399853489,1766746810338,150.0,0.00017002,2]
[399853491,1766746839721,4156.9487374,0.00016971,2]
[399853492,1766746839746,1731.0512626,0.00016971,2]
[399853494,1766746850753,5888.0,0.00016936,2]
[399853495,1766746860095,2380.9587374,0.00012,2]
[399853496,1766746860121,10000.01,0.00012,2]
[399853497,1766746860145,10000.01,0.00012,2]
[399853498,1766746860167,10000.01,0.00012,2]
[399853499,1766746860190,10000.01,0.00012,2]
[399853500,1766746860213,10000.01,0.00012,2]
[399853501,1766746860235,10000.01,0.00012,2]
[399853502,1766746860258,10000.01,0.00012,2]
[399853503,1766746860281,10000.01,0.00012,2]
[399853504,1766746860304,10000.01,0.00012,2]
[399853505,1766746888707,150.0,5.162e-05,2]
[399853506,1766746889096,195.81,5.408e-05,2]
[399853507,1766746889493,293.71,5.653e-05,2]
[399853508,1766746889892,360.48,5.899e-05,2]
[399853509,1766746889916,31.14,5.899e-05,2]
[399853510,1766746890312,489.52,6.145e-05,2]
[399853511,1766746890768,479.34,6.391e-05,2]
[399853512,1766746890792,108.09,6.391e-05,2]
[399853513,1766746891155,685.33,6.636e-05,2]
[399853514,1766746891567,206.58,6.882e-05,2]
[399853515,1766746891592,576.66,6.882e-05,2]
[399853516,1766746894045,-881.14,7.128e-05,2]
[399853517,1766746894082,-979.04,7.374e-05,2]
[399853518,1766746907124,-4944.81415792,0.0001089,2]
[399853519,1766746909236,-891.90183628,0.0001089,2]
[399853520,1766746909261,-8216.20632744,0.0001089,2]
[399853521,1766746909347,-10000.01,0.00011,2]
[399853522,1766746915261,-10000.01,0.00011,2]
[399853523,1766746915372,-2586.10814702,0.00011,2]
[399853524,1766746915396,-4827.79370596,0.00011,2]
[399853525,1766746918408,-300.0,0.00012239,2]
[399853526,1766746918442,-300.0,0.00012239,2]
[399853527,1766746918474,-300.0,0.00012239,2]
[399853528,1766746918506,-300.0,0.00012239,2]
[399853529,1766746918537,-300.0,0.00012239,2]
[399853530,1766746918567,-300.0,0.00012239,2]
[399853531,1766746918597,-300.0,0.00012239,2]
[399853532,1766746918633,-300.0,0.00012239,2]
[399853533,1766746918663,-300.0,0.00012239,2]
[399853534,1766746918695,-300.0,0.00012239,2]
[399853535,1766746918725,-300.0,0.00012239,2]
[399853536,1766746918756,-300.0,0.00012239,2]
[399853537,1766746918788,-300.0,0.00012239,2]
[399853538,1766746918819,-300.0,0.00012239,2]
[399853539,1766746918849,-300.0,0.00012239,2]
[399853540,1766746926891,947.07767836,0.00012239,2]
[399853541,1766746931406,52.93232164,0.00012071,2]
[399853542,1766746931430,250.35563216,0.00012071,2]
[399853543,1766746933444,-600.0,0.00012483,2]
[399853544,1766746963812,150.0,5.159e-05,2]
[399853545,1766746964259,150.0,5.404e-05,2]
[399853546,1766746964655,150.0,5.65e-05,2]
[399853547,1766746965054,150.0,5.895e-05,2]
[399853548,1766746965526,150.0,6.141e-05,2]
[399853549,1766746965827,172.25,6.387e-05,2]
[399853550,1766746966246,200.96,6.632e-05,2]
[399853551,1766746966766,229.67,6.878e-05,2]
[399853552,1766746967163,258.37,7.124e-05,2]
[399853553,1766746967584,287.08,7.369e-05,2]
[399853554,1766747032210,150.0,5.155e-05,2]
[399853555,1766747032621,150.0,5.4e-05,2]
[399853556,1766747123522,1000.0,0.00013391,2]
[399853557,1766747131932,2000.0,0.00013391,2]
[399853558,1766747132447,-303.2879538,0.00013391,2]
[399853559,1766747132475,-269.11957225,0.00013561,2]
[399853560,1766747147620,-720.0,0.00013731,2]
[399853561,1766747190126,1581.7583543,0.00011931,2]
[399853562,1766747190307,1581.7583543,0.00013577,2]
[399853563,1766747283176,233.47,0.00011299,2]
[399853564,1766747283440,159.78,0.00011299,2]
[399853565,1766747347224,500.0,0.00013699,2]
[399853566,1766747347737,-303.2879538,0.0001471,2]
[399853567,1766747347769,-864.0,0.00015104,2]
[399853568,1766747347800,-1581.7583543,0.00015222,2]
[399853569,1766747347830,-317.56109526,0.00015561,2]
[399853570,1766747347860,-303.2879538,0.0001603,2]
[399853571,1766747347888,-1010.84533523,0.00016284,7]
[399853572,1766747347919,-238.52861522,0.00016615,2]
[399853573,1766747353682,-761.47138478,0.00016615,2]
[399853574,1766747353710,-756.69231,0.00016741,2]
[399853575,1766747353738,-1581.7583543,0.00016868,2]
[399853576,1766747353766,-300.0,0.00016934,2]
[399853577,1766747359727,-756.4772307,0.00016741,2]
[399853578,1766747359757,-3358.30021838,0.00016935,2]
[399853579,1766747362879,-5231.9616934,0.00012386,2]
[399853580,1766747363106,-10000.01,0.00012386,2]
[399853581,1766747363221,-957.917422,0.00012386,2]
[399853582,1766747363257,-8084.175156,0.00014398,2]
[399853583,1766747363343,-10000.01,0.00014398,2]
[399853584,1766747365793,-129.4400988,0.00014398,2]
[399853585,1766747377926,-10000.01,0.00016199,2]
[399853586,1766747378034,-10000.01,0.00016199,2]
[399853607,1766747432384,-237.3413943,0.00016199,2]
[399853609,1766747432396,-262.1811608,0.00016199,2]
[399853631,1766747438312,-392.8188392,0.00016199,2]
[399853632,1766747438324,-339.17101751,0.00016284,7]
[399853633,1766747438335,-49.85146103,0.0001636,2]
[399853634,1766747438348,-207.53449787,0.0001636,2]
[399853635,1766747438360,-300.0,0.00016521,2]
[399853636,1766747438370,-90.10857421,0.00016521,2]
[399853637,1766747438384,-209.89142579,0.00016521,2]
[399853638,1766747438395,-300.0,0.00016521,2]
[399853639,1766747438406,-300.0,0.00016521,2]
[399853640,1766747438417,-1200.0,0.00016521,2]
[399853641,1766747438429,-1189.94032164,0.00016522,2]
[399853642,1766747438444,-16006.60759005,0.00016522,2]
[399853643,1766747438666,-1733.72171815,0.00016522,2]
[399853694,1766747440626,-26788.64950829,0.00016522,2]
[399853695,1766747440637,-300.0,0.00016522,2]
[399853696,1766747440647,-300.0,0.00016522,2]
[399853697,1766747440658,-300.0,0.00016522,2]
[399853698,1766747440668,-300.0,0.00016522,2]
[399853699,1766747440679,-300.0,0.00016522,2]
[399853700,1766747440689,-300.0,0.00016522,2]
[399853701,1766747440698,-300.0,0.00016522,2]
[399853702,1766747440708,-300.0,0.00016522,2]
[399853703,1766747440718,-300.0,0.00016522,2]
[399853704,1766747440727,-300.0,0.00016522,2]
[399853705,1766747440737,-300.0,0.00016522,2]
[399853706,1766747440747,-300.0,0.00016522,2]
[399853707,1766747440756,-300.0,0.00016522,2]
[399853708,1766747440766,-300.0,0.00016522,2]
[399853709,1766747440775,-300.0,0.00016522,2]
[399853710,1766747440786,-199.28719624,0.00016706,7]
[399853711,1766747440795,-1339.80483518,0.00016766,2]
[399853712,1766747442590,-430.65026666,0.00016766,2]
[399853725,1766747444445,-300.0,0.00016851,2]
[399853726,1766747444458,-300.0,0.00016851,2]
[399853727,1766747444468,-1476.9944682,0.00016935,2]
[399853728,1766747444480,-293.46063364,0.00016935,2]
[399853729,1766747444490,-500.0,0.00017002,2]
[399853730,1766747444499,-1200.0,0.00017002,2]